bitfinex-derivatives/quotes_BNBF0:USTF0_20250617
["timestamp","ask_amount","ask_price","bid_price","bid_amount"]
[1750180138884,1.14723533,641.89,640.9,1.458]
[1750180139081,1.14723533,641.88,640.9,1.458]
[1750180139881,1.14723533,641.87,640.9,1.458]
[1750180140885,1.14723533,641.83,640.9,1.458]
[1750180141286,1.14723533,641.79,640.91,1.55383745]
[1750180141581,1.14723533,641.78,640.91,1.55383745]
[1750180141786,1.14723533,641.78,640.9,1.458]
[1750180141787,1.14723533,641.81,640.9,1.458]
[1750180141985,1.14723533,641.78,640.9,1.458]
[1750180142186,1.14723533,641.68,640.9,1.458]
[1750180142384,1.14723533,641.46,640.9,1.458]
[1750180142587,5.36499967,642.71,640.9,1.458]
[1750180142588,1.14723533,641.37,640.9,1.458]
[1750180142785,1.14723533,641.34,640.9,1.458]
[1750180143087,1.14723533,641.29,640.9,1.458]
[1750180143387,1.14723533,641.3,640.9,1.458]
[1750180143787,1.14723533,641.29,640.89,1.02]
[1750180144390,1.14723533,641.31,640.89,1.02]
[1750180144588,1.14723533,641.3,640.89,1.02]
[1750180145388,5.36499967,642.18,640.89,1.02]
[1750180145389,1.14723533,641.33,640.89,1.02]
[1750180145684,1.14723533,641.34,640.89,1.02]
[1750180146188,1.14723533,641.36,640.89,1.02]
[1750180146487,1.14723533,641.43,640.89,1.02]
[1750180147085,1.14723533,641.44,640.9,1.041]
[1750180147283,1.14723533,641.43,640.9,1.041]
[1750180147888,1.14723533,641.45,640.9,1.041]
[1750180148085,1.14723533,641.44,640.9,1.041]
[1750180148486,1.14723533,641.45,640.9,1.041]
[1750180148686,1.14723533,641.43,640.9,1.041]
[1750180148886,1.14723533,641.45,640.9,1.041]
[1750180149090,1.14723533,641.4,640.9,1.041]
[1750180149287,1.14723533,641.48,640.9,1.041]
[1750180149487,1.14723533,641.46,640.9,1.041]
[1750180149789,1.14723533,641.45,640.9,1.041]
[1750180149988,1.14723533,641.44,640.9,1.041]
[1750180150390,1.14723533,641.45,640.9,1.041]
[1750180151887,1.14723533,641.46,640.9,1.041]
[1750180152787,1.14723533,641.5,640.9,1.041]
[1750180153190,1.14723533,641.51,640.9,1.041]
[1750180154995,1.53285704,641.74,640.9,1.041]
[1750180155289,0.31165755,641.73,640.9,1.041]
[1750180155993,1.1424717,641.38,640.91,1.486]
[1750180156490,1.5232956,641.54,640.91,1.486]
[1750180156997,2.29928557,641.71,640.91,1.486]
[1750180157290,0.31167212,641.7,640.91,1.486]
[1750180157996,1.14228644,641.37,640.91,1.486]
[1750180158296,1.52304859,641.54,640.91,1.486]
[1750180159095,2.29928557,641.71,640.91,1.486]
[1750180159096,0.31175471,641.53,640.91,1.486]
[1750180159998,1.14209593,641.4,640.91,1.486]
[1750180160897,1.14209593,641.41,640.91,1.486]
[1750180161292,1.14209593,641.4,640.91,1.486]
[1750180161598,1.14209593,641.13,640.91,1.486]
[1750180161794,1.0848592,641.12,640.91,1.486]
[1750180161997,1.0848592,641.11,640.91,1.486]
[1750180162198,1.0848592,641.1,640.91,1.486]
[1750180162393,1.0848592,641.09,640.91,1.486]
[1750180162596,1.0848592,641.08,640.91,1.486]
[1750180162796,1.0848592,641.07,640.91,1.486]
[1750180162997,1.0848592,641.06,640.91,1.486]
[1750180163293,1.0848592,641.05,640.91,1.486]
[1750180163492,1.0848592,641.04,640.91,1.486]
[1750180163696,1.0848592,641.03,640.91,1.486]
[1750180163994,1.0848592,641.02,640.91,1.486]
[1750180164292,0.31175471,641.53,640.91,1.486]
[1750180164293,0.8848592,641.01,640.91,1.486]
[1750180164494,1.14209593,641.27,640.91,1.486]
[1750180164998,1.14209593,641.29,640.91,1.486]
[1750180166802,1.14209593,641.28,640.91,1.486]
[1750180169001,1.14209593,641.3,640.91,1.486]
[1750180169301,1.14209593,641.33,640.91,1.486]
[1750180169501,1.14209593,641.37,640.91,1.486]
[1750180169704,1.14209593,641.39,640.91,1.486]
[1750180169999,1.14209593,641.4,640.91,1.486]
[1750180170297,1.14209593,641.41,640.91,1.486]
[1750180170898,1.14209593,641.42,640.91,1.486]
[1750180171899,1.14209593,641.43,640.91,1.486]
[1750180172805,1.14209593,641.44,640.91,1.486]
[1750180173007,1.14209593,641.43,640.91,1.486]
[1750180173200,1.14209593,641.46,640.91,1.486]
[1750180173604,1.14209593,641.44,640.91,1.486]
[1750180173808,1.14209593,641.43,640.91,1.486]
[1750180175102,1.14209593,641.45,640.91,1.486]
[1750180175303,1.14209593,641.49,640.91,1.486]
[1750180175708,1.14209593,641.5,640.91,1.486]
[1750180176010,1.14209593,641.51,640.91,1.486]
[1750180176412,2.22663636,641.5,640.91,1.486]
[1750180176605,1.08454043,641.49,640.91,1.486]
[1750180176808,1.08454043,641.48,640.91,1.486]
[1750180177009,1.08454043,641.47,640.91,1.486]
[1750180177204,1.08454043,641.46,640.91,1.486]
[1750180177406,1.08454043,641.45,640.91,1.486]
[1750180177609,1.08454043,641.44,640.91,1.486]
[1750180177811,1.08454043,641.43,640.91,1.486]
[1750180178109,1.08454043,641.42,640.91,1.486]
[1750180178309,1.08454043,641.41,640.91,1.486]
[1750180178509,1.08454043,641.4,640.91,1.486]
[1750180178705,1.08454043,641.39,640.91,1.486]
[1750180178909,1.08454043,641.38,640.91,1.486]
[1750180179106,1.08454043,641.37,640.89,1.295]
[1750180179306,1.08454043,641.36,640.89,1.295]
[1750180179508,1.08454043,641.35,640.89,1.295]
[1750180179710,1.08454043,641.34,640.9,1.157]
[1750180180010,1.08454043,641.33,640.9,1.157]
[1750180180210,1.08454043,641.32,640.9,1.157]
[1750180180509,1.08454043,641.31,640.9,1.157]
[1750180180707,1.08454043,641.3,640.9,1.157]
[1750180180907,1.08454043,641.29,640.9,1.157]
[1750180181111,1.08454043,641.28,640.9,1.157]
[1750180181307,1.08454043,641.27,640.9,1.157]
[1750180181508,1.08454043,641.26,640.9,1.157]
[1750180181706,1.08454043,641.25,640.9,1.157]
[1750180181906,1.08454043,641.24,640.9,1.157]
[1750180182106,1.08454043,641.23,640.9,1.157]
[1750180182308,1.08454043,641.22,640.9,1.157]
[1750180182509,1.08454043,641.21,640.9,1.157]
[1750180182713,1.08454043,641.2,640.9,1.157]
[1750180182906,1.08454043,641.19,640.9,1.157]
[1750180183107,1.08454043,641.18,640.9,1.157]
[1750180183308,1.14209593,641.36,640.9,1.157]
[1750180183309,1.08454043,641.17,640.9,1.157]
[1750180183512,1.08454043,641.16,640.9,1.157]
[1750180183708,1.08454043,641.15,640.9,1.157]
[1750180183910,1.08454043,641.14,640.9,1.157]
[1750180184113,1.08454043,641.13,640.9,1.157]
[1750180184309,1.08454043,641.12,640.9,1.157]
[1750180184610,1.14209593,641.36,640.9,1.157]
[1750180184807,1.08603753,641.35,640.9,1.157]
[1750180185008,1.08603753,641.34,640.9,1.157]
[1750180185209,1.08603753,641.33,640.9,1.157]
[1750180185414,1.08603753,641.32,640.9,1.157]
[1750180185709,1.08603753,641.31,640.9,1.157]
[1750180185909,1.14209593,641.37,640.9,1.157]
[1750180185910,1.08603753,641.3,640.9,1.157]
[1750180186110,1.08603753,641.29,640.9,1.157]
[1750180186309,1.08603753,641.28,640.9,1.157]
[1750180186513,1.08603753,641.27,640.9,1.157]
[1750180186713,1.08603753,641.26,640.9,1.157]
[1750180186913,1.08603753,641.25,640.9,1.157]
[1750180187111,1.08603753,641.24,640.9,1.157]
[1750180187316,1.08603753,641.23,640.9,1.157]
[1750180187515,1.08603753,641.22,640.9,1.157]
[1750180187711,1.14209593,641.47,640.91,1.15]
[1750180187915,1.08739149,641.46,640.91,1.15]
[1750180188215,1.08739149,641.45,640.91,1.15]
[1750180188514,1.08739149,641.44,640.91,1.15]
[1750180188715,1.08739149,641.43,640.91,1.15]
[1750180188911,1.08739149,641.42,640.91,1.15]
[1750180189114,1.08739149,641.41,640.91,1.15]
[1750180189311,1.08739149,641.4,640.91,1.15]
[1750180189516,1.08739149,641.39,640.91,1.15]
[1750180189719,1.08739149,641.38,640.91,1.15]
[1750180189914,1.08739149,641.37,640.91,1.15]
[1750180190113,1.08739149,641.36,640.91,1.15]
[1750180190314,1.08739149,641.35,640.91,1.15]
[1750180190515,1.08739149,641.34,640.91,1.15]
[1750180190715,1.08739149,641.33,640.91,1.15]
[1750180190918,1.08739149,641.32,640.91,1.15]
[1750180191120,1.14209593,641.54,640.91,1.15]
[1750180191319,1.0879691,641.53,640.91,1.15]
[1750180191520,1.0879691,641.52,640.91,1.15]
[1750180191717,1.14209593,641.72,640.91,1.15]
[1750180193626,1.14209593,641.73,640.91,1.15]
[1750180193925,1.14209593,641.77,640.91,1.15]
[1750180194326,1.14209593,641.79,640.91,1.15]
[1750180195224,1.14209593,641.8,640.91,1.15]
[1750180195527,1.14209593,641.78,640.91,1.15]
[1750180196526,1.14209593,641.79,640.91,1.15]
[1750180197327,1.14209593,641.78,640.91,1.15]
[1750180197527,1.14209593,641.79,640.91,1.15]
[1750180197725,1.14209593,641.78,640.91,1.15]
[1750180198222,1.14209593,641.79,640.91,1.15]
[1750180198624,1.14209593,641.78,640.91,1.15]
[1750180199323,1.52279458,641.92,640.91,1.15]
[1750180199528,1.14821943,641.78,640.91,1.15]
[1750180200822,1.14821943,641.8,640.91,1.15]
[1750180201227,1.14821943,641.79,640.91,1.15]
[1750180201425,1.14821943,641.81,640.91,1.15]
[1750180201624,1.14821943,641.82,640.91,1.15]
[1750180201829,1.14821943,641.84,640.91,1.15]
[1750180202024,1.14821943,641.82,640.91,1.15]
[1750180202228,1.14821943,641.84,640.91,1.15]
[1750180202429,1.14821943,641.82,640.91,1.15]
[1750180202930,0.27127946,641.8,640.91,1.15]
[1750180207740,1.1484557,641.93,640.91,1.15]
[1750180208240,0.27124563,641.87,640.91,1.15]
[1750180213242,0.27124563,641.87,640.92,1.458]
[1750180216844,0.27124563,641.87,640.93,1.226]
[1750180218737,0.27124563,641.87,640.94,1.412]
[1750180221941,0.27124563,641.87,640.96,1.54620585]
[1750180222147,1.14897733,642.02,640.96,1.54620585]
[1750180222442,1.14897733,642.03,640.97,1.54620585]
[1750180222647,1.14897733,642.13,641.05,1.54620585]
[1750180222841,0.31146826,642.12,641.05,1.54620585]
[1750180223045,0.27120652,642.04,641.06,1.54620585]
[1750180223343,0.27120652,642.04,641.09,1.54620585]
[1750180223546,0.27120652,642.04,641.06,1.54620585]
[1750180223747,0.27120652,642.04,641.04,1.54620585]
[1750180224343,0.27120652,642.04,641.06,1.54620585]
[1750180224543,0.27120652,642.04,641.05,1.54620585]
[1750180224744,0.27120652,642.04,641.1,1.54620585]
[1750180224948,0.27120652,642.04,640.96,2.32003123]
[1750180224949,0.27120652,642.04,641.09,1.54620585]
[1750180225249,0.27120652,642.04,641.1,1.54620585]
[1750180225447,0.27120652,642.04,640.97,2.32003123]
[1750180225448,0.27120652,642.04,641.09,1.54620585]
[1750180226045,0.27120652,642.04,641.1,1.54620585]
[1750180226646,0.27120652,642.04,641.09,1.54620585]
[1750180226850,0.27120652,642.04,641.07,1.54620585]
[1750180227150,0.27120652,642.04,641.09,1.54620585]
[1750180227346,0.27120652,642.04,641.1,1.54620585]
[1750180227558,0.27120652,642.04,641.09,1.54620585]
[1750180227850,0.27120652,642.04,641.11,1.457]
[1750180233452,0.27120652,642.04,641.15,1.54620585]
[1750180233852,0.27120652,642.04,641.14,1.54620585]
[1750180234050,0.31146826,642.12,641.15,1.54620585]
[1750180234254,0.31146826,642.12,641.13,1.54620585]
[1750180234449,0.31146826,642.12,641.12,1.54620585]
[1750180234654,0.31146826,642.12,641.11,1.457]
[1750180234655,0.31146826,642.12,641.14,1.54620585]
[1750180235455,0.31146826,642.12,641.15,1.54620585]
[1750180236357,0.27114101,642.19,641.15,1.54620585]
[1750180237350,0.27114101,642.19,641.12,1.54620585]
[1750180238353,1.14897733,642.26,641.14,1.54620585]
[1750180238550,1.14897733,642.26,641.13,1.54620585]
[1750180239054,0.27112094,642.22,641.12,1.54620585]
[1750180239554,0.27112094,642.22,641.13,1.54620585]
[1750180239752,1.14897733,642.43,641.15,1.54620585]
[1750180239951,1.14897733,642.47,641.19,1.54620585]
[1750180240151,1.14897733,642.48,641.2,1.54620585]
[1750180240653,1.14897733,642.49,641.19,1.54620585]
[1750180240854,0.27105654,642.38,641.18,1.54620585]
[1750180241557,0.27105654,642.38,641.17,1.54620585]
[1750180242156,0.27105654,642.38,641.23,1.54620585]
[1750180242558,0.27105654,642.38,641.21,1.54620585]
[1750180243255,0.27105654,642.38,641.22,1.54620585]
[1750180243552,0.27105654,642.38,641.2,1.54620585]
[1750180243755,0.27105654,642.38,641.21,1.54620585]
[1750180243959,0.27105654,642.38,641.2,1.54620585]
[1750180244560,0.27105654,642.38,641.21,1.54620585]
[1750180244755,0.27105654,642.38,641.23,1.54620585]
[1750180245056,0.27105654,642.38,641.22,1.54620585]
[1750180245255,0.27105654,642.38,641.23,1.54620585]
[1750180245455,0.27105654,642.38,641.22,1.54620585]
[1750180245655,0.27105654,642.38,641.21,1.54620585]
[1750180246354,0.27105654,642.38,641.23,1.54620585]
[1750180246554,0.27105654,642.38,641.22,1.54620585]
[1750180246757,0.27105654,642.38,641.18,1.54620585]
[1750180246957,0.27105654,642.38,641.16,1.54620585]
[1750180247259,1.14897733,642.35,641.16,1.54620585]
[1750180247559,1.14897733,642.3,641.17,1.131]
[1750180247758,1.14897733,642.29,641.17,1.131]
[1750180248358,1.14897733,642.28,641.17,1.131]
[1750180249258,1.14897733,642.27,641.17,1.131]
[1750180250060,1.14897733,642.25,641.17,1.131]
[1750180250758,1.14897733,642.24,641.17,1.131]
[1750180250956,1.14897733,642.21,641.17,1.131]
[1750180251361,1.14897733,642.19,641.17,1.131]
[1750180251561,1.14897733,642.12,641.17,1.131]
[1750180252057,1.14897733,642.14,641.17,1.131]
[1750180252257,1.14897733,642.16,641.17,1.131]
[1750180252461,1.14897733,642.15,641.17,1.131]
[1750180253558,1.14897733,642.17,641.17,1.131]
[1750180254061,1.14897733,642.19,641.17,1.131]
[1750180254462,1.14897733,642.2,641.17,1.131]
[1750180256164,1.14897733,642.21,641.17,1.131]
[1750180257062,1.14897733,642.21,641.18,0.31192488]
[1750180257665,1.14897733,642.22,641.18,0.31192488]
[1750180257965,1.14897733,642.22,641.19,1.391]
[1750180261367,1.14897733,642.22,641.2,1.435]
[1750180262573,1.14897733,642.21,641.2,1.435]
[1750180264275,1.14897733,642.27,641.2,1.435]
[1750180264472,1.14897733,642.21,641.2,1.435]
[1750180264871,1.14897733,642.23,641.2,1.435]
[1750180265277,1.14897733,642.25,641.2,1.435]
[1750180265479,1.14897733,642.26,641.2,1.435]
[1750180266174,1.14897733,642.27,641.2,1.435]
[1750180266378,1.14897733,642.28,641.2,1.435]
[1750180266575,1.14897733,642.3,641.2,1.435]
[1750180266778,1.14897733,642.32,641.2,1.435]
[1750180267273,1.14897733,642.31,641.2,1.435]
[1750180267474,1.14897733,642.28,641.2,1.435]
[1750180268277,1.14897733,642.3,641.2,1.435]
[1750180268477,1.14897733,642.31,641.2,1.435]
[1750180268981,1.14897733,642.32,641.2,1.435]
[1750180269172,1.14897733,642.33,641.2,1.435]
[1750180269374,1.14897733,642.34,641.2,1.435]
[1750180269573,1.14897733,642.36,641.21,0.31191029]
[1750180269879,0.27105654,642.38,641.21,0.31191029]
[1750180270778,1.14897733,642.46,641.26,1.54620585]
[1750180271177,0.27104809,642.4,641.26,1.54620585]
[1750180271581,0.27104809,642.4,641.27,1.85808696]
[1750180271877,0.27104809,642.4,641.28,1.85808209]
[1750180272081,0.27104809,642.4,641.29,0.31187138]
[1750180272282,1.42002542,642.4,641.45,1.54620585]
[1750180272479,1.42002542,642.4,641.44,1.54620585]
[1750180272882,1.14897733,642.37,641.41,1.54620585]
[1750180273478,1.14897733,642.36,641.42,1.54620585]
[1750180273682,1.14897733,642.36,641.41,1.54620585]
[1750180274376,0.27104809,642.4,641.29,0.31187138]
[1750180274377,1.14897733,642.35,641.39,1.54620585]
[1750180274578,1.14897733,642.32,641.38,1.54620585]
[1750180275582,1.14897733,642.33,641.4,1.54620585]
[1750180275882,1.14897733,642.33,641.41,1.54620585]
[1750180276181,1.14897733,642.33,641.4,1.54620585]
[1750180276482,1.14897733,642.33,641.41,1.54620585]
[1750180276683,1.14897733,642.33,641.43,1.54620585]
[1750180276982,0.27104809,642.4,641.29,0.31187138]
[1750180276983,1.14897733,642.32,641.46,1.54620585]
[1750180277283,1.14897733,642.33,641.43,1.54620585]
[1750180277483,1.14897733,642.32,641.44,1.54620585]
[1750180278782,1.14897733,642.32,641.42,1.54620585]
[1750180279381,1.14897733,642.33,641.43,1.54620585]
[1750180279586,1.14897733,642.32,641.45,1.54620585]
[1750180279788,1.14897733,642.31,641.43,1.54620585]
[1750180279986,1.14897733,642.31,641.46,1.456]
[1750180280286,1.14897733,642.3,641.46,1.456]
[1750180280482,1.14897733,642.31,641.46,1.456]
[1750180280986,1.14897733,642.3,641.46,1.456]
[1750180282188,1.14897733,642.31,641.46,1.456]
[1750180282388,1.14897733,642.3,641.46,1.456]
[1750180284488,1.14897733,642.27,641.46,1.456]
[1750180284886,1.14897733,642.26,641.46,1.456]
[1750180285389,1.14897733,642.19,641.46,1.456]
[1750180285689,1.14897733,642.18,641.46,1.456]
[1750180286085,1.14897733,642.19,641.46,1.456]
[1750180286285,1.14897733,642.18,641.46,1.456]
[1750180287995,1.14897733,642.21,641.46,1.456]
[1750180288196,1.14897733,642.31,641.46,1.456]
[1750180288392,1.14897733,642.32,641.46,1.456]
[1750180288795,1.14897733,642.33,641.46,1.456]
[1750180289591,1.14897733,642.32,641.46,1.456]
[1750180291095,1.14897733,642.31,641.46,1.456]
[1750180291396,1.14897733,642.27,641.46,1.456]
[1750180291792,1.14897733,642.24,641.46,1.456]
[1750180292996,1.14897733,642.2,641.46,1.456]
[1750180293397,1.14897733,642.19,641.46,1.456]
[1750180293595,1.14897733,642.2,641.46,1.456]
[1750180295294,1.14897733,642.21,641.46,1.456]
[1750180295995,1.14897733,642.22,641.46,1.456]
[1750180296395,1.14897733,642.15,641.46,1.456]
[1750180296598,1.14897733,642.11,641.46,1.456]
[1750180299102,1.14897733,642.11,641.29,0.31187138]
[1750180299504,1.14897733,642.12,641.29,0.31187138]
[1750180299702,1.14897733,642.13,641.29,0.31187138]
[1750180300301,1.14897733,642.13,641.3,1.447]
[1750180300503,1.14897733,642.12,641.3,1.447]
[1750180302106,1.14897733,642.14,641.3,1.447]
[1750180302606,1.14897733,642.15,641.31,1.111]
[1750180302806,1.14897733,642.08,641.31,1.111]
[1750180303105,1.14897733,642.07,641.31,1.111]
[1750180303302,1.14897733,642.08,641.31,1.111]
[1750180303505,1.14897733,642.07,641.31,1.111]
[1750180303905,1.14897733,642.06,641.31,1.111]
[1750180304706,1.14897733,642.07,641.31,1.111]
[1750180305708,1.14897733,642.06,641.31,1.111]
[1750180306108,1.14897733,642.04,641.31,1.111]
[1750180306307,1.14897733,642.06,641.31,1.111]
[1750180306506,1.14897733,642.05,641.31,1.111]
[1750180308203,1.14897733,642.04,641.31,1.111]
[1750180308708,1.14897733,641.99,641.31,1.111]
[1750180309004,1.14897733,641.98,641.31,1.111]
[1750180309203,1.14897733,641.97,641.31,1.111]
[1750180309406,1.14897733,641.96,641.31,1.111]
[1750180310107,1.14897733,641.94,641.31,1.111]
[1750180310305,1.14897733,641.93,641.31,1.111]
[1750180310507,1.14897733,641.92,641.31,1.111]
[1750180310809,1.14897733,641.92,641.32,1.449]
[1750180311208,1.14897733,641.91,641.32,1.449]
[1750180311506,1.14897733,641.93,641.32,1.449]
[1750180313008,1.14897733,641.94,641.32,1.449]
[1750180314309,1.14897733,642.02,641.32,1.449]
[1750180315005,1.14897733,642.03,641.32,1.449]
[1750180315205,1.14897733,642.05,641.32,1.449]
[1750180315410,1.14897733,642.08,641.32,1.449]
[1750180315609,1.14897733,642.09,641.32,1.449]
[1750180318008,1.14897733,642.07,641.32,1.449]
[1750180318212,1.14897733,642.01,641.32,1.449]
[1750180318409,1.14897733,641.99,641.32,1.449]
[1750180318614,1.14897733,642.0,641.32,1.449]
[1750180318813,1.14897733,641.99,641.32,1.449]
[1750180319210,1.14897733,641.98,641.32,1.449]
[1750180320210,1.14897733,641.99,641.32,1.449]
[1750180320713,1.14897733,642.01,641.32,1.449]
[1750180321315,1.14897733,642.02,641.32,1.449]
[1750180321817,1.14897733,642.03,641.32,1.449]
[1750180322115,1.14897733,642.04,641.32,1.449]
[1750180322712,1.14897733,642.08,641.32,1.449]
[1750180323311,1.14897733,642.11,641.32,1.449]
[1750180323512,2.28419187,642.36,641.32,1.449]
[1750180323513,1.14897733,642.12,641.32,1.449]
[1750180323714,1.14897733,642.12,641.33,1.462]
[1750180324613,1.14897733,642.13,641.33,1.462]
[1750180324816,1.14897733,642.12,641.33,1.462]
[1750180325920,1.14897733,642.15,641.33,1.462]
[1750180327521,0.27104809,642.4,641.33,1.462]
[1750180327522,1.14897733,642.16,641.33,1.462]
[1750180331627,1.14897733,642.15,641.33,1.462]
[1750180333029,1.14897733,642.14,641.33,1.462]
[1750180334431,1.14897733,642.18,641.33,1.462]
[1750180335034,1.14897733,642.16,641.33,1.462]
[1750180335227,1.14897733,642.17,641.33,1.462]
[1750180335429,1.14897733,642.18,641.33,1.462]
[1750180335728,1.14897733,642.17,641.33,1.462]
[1750180336530,1.14897733,642.16,641.33,1.462]
[1750180336734,1.14897733,642.18,641.33,1.462]
[1750180338634,1.14897733,642.17,641.33,1.462]
[1750180339139,1.14897733,642.18,641.33,1.462]
[1750180339337,1.14897733,642.24,641.33,1.462]
[1750180339631,1.14897733,642.2,641.33,1.462]
[1750180340438,1.14897733,642.29,641.33,1.462]
[1750180340733,1.14897733,642.25,641.33,1.462]
[1750180341639,1.14897733,642.24,641.33,1.462]
[1750180342939,1.14897733,642.23,641.33,1.462]
[1750180343741,1.14897733,642.21,641.33,1.462]
[1750180344042,1.14897733,642.15,641.33,1.462]
[1750180344743,1.14897733,642.15,641.32,1.449]
[1750180344943,1.14897733,642.12,641.32,1.449]
[1750180346341,1.53196978,642.27,641.32,1.449]
[1750180346342,1.14897733,642.11,641.32,1.449]
[1750180347442,1.14897733,642.11,641.33,1.54620585]
[1750180347640,1.14897733,642.08,641.36,1.54620585]
[1750180348444,1.14897733,642.07,641.35,1.54620585]
[1750180348641,1.14897733,642.08,641.37,1.462]
[1750180348841,1.14897733,642.07,641.37,1.462]
[1750180349644,1.14897733,642.06,641.37,1.462]
[1750180350242,1.14897733,642.08,641.37,1.462]
[1750180350446,1.14897733,642.05,641.37,1.462]
[1750180350643,1.14897733,642.04,641.37,1.462]
[1750180350842,1.14897733,642.05,641.37,1.462]
[1750180351142,1.14897733,642.04,641.37,1.462]
[1750180352145,1.14897733,642.05,641.37,1.462]
[1750180353742,1.14897733,642.04,641.37,1.462]
[1750180354749,1.14897733,642.01,641.38,1.641]
[1750180355548,1.14897733,641.99,641.38,1.641]
[1750180356447,1.14897733,642.01,641.38,1.641]
[1750180357048,1.14897733,642.0,641.38,1.641]
[1750180358744,1.14897733,642.01,641.39,1.284]
[1750180363150,1.14897733,642.02,641.39,1.284]
[1750180363650,1.14897733,642.01,641.39,1.284]
[1750180363851,1.14897733,642.0,641.39,1.284]
[1750180367457,1.14897733,642.01,641.39,1.284]
[1750180368263,1.14897733,642.03,641.39,1.284]
[1750180368563,1.14897733,642.05,641.39,1.284]
[1750180368760,1.14897733,642.22,641.39,1.284]
[1750180369761,1.14897733,642.23,641.39,1.284]
[1750180371066,1.14897733,642.27,641.39,1.284]
[1750180371266,1.14897733,642.26,641.39,1.284]
[1750180371967,1.14897733,642.27,641.39,1.284]
[1750180372663,1.14897733,642.26,641.39,1.284]
[1750180373567,1.14897733,642.25,641.39,1.284]
[1750180373763,1.14897733,642.19,641.39,1.284]
[1750180373965,1.14897733,642.16,641.39,1.284]
[1750180374163,1.14897733,642.13,641.4,1.051]
[1750180374468,1.14897733,642.07,641.4,1.051]
[1750180374766,1.14897733,642.04,641.4,1.051]
[1750180376668,1.14897733,641.95,641.4,1.051]
[1750180377772,1.14897733,641.94,641.4,1.051]
[1750180380972,1.14897733,641.91,641.4,1.051]
[1750180381372,1.14897733,641.9,641.4,1.051]
[1750180381872,1.14897733,641.89,641.4,1.051]
[1750180382076,1.14897733,641.88,641.4,1.051]
[1750180382977,1.14897733,641.87,641.4,1.051]
[1750180383279,1.14897733,641.88,641.4,1.051]
[1750180384980,1.14897733,641.89,641.4,1.051]
[1750180385878,1.14897733,641.87,641.4,1.051]
[1750180386084,1.14897733,641.79,641.4,1.051]
[1750180386784,1.53196978,641.95,641.4,1.051]
[1750180386785,1.14897733,641.78,641.4,1.051]
[1750180386983,1.14897733,641.82,641.4,1.051]
[1750180387183,1.14897733,641.83,641.4,1.051]
[1750180387683,1.14897733,641.85,641.4,1.051]
[1750180387878,1.14897733,641.84,641.4,1.051]
[1750180388183,1.14897733,641.86,641.41,1.493]
[1750180389085,1.14897733,641.87,641.41,1.493]
[1750180389786,1.14897733,641.85,641.41,1.493]
[1750180389986,1.14897733,641.86,641.41,1.493]
[1750180390189,1.14897733,641.87,641.41,1.493]
[1750180390489,1.14897733,641.89,641.41,1.493]
[1750180390684,1.14897733,641.9,641.41,1.493]
[1750180391989,1.14897733,641.95,641.41,1.493]
[1750180392286,1.14897733,641.97,641.41,1.493]
[1750180392489,1.14897733,641.99,641.41,1.493]
[1750180393290,1.14897733,642.0,641.41,1.493]
[1750180393689,1.14897733,642.01,641.41,1.493]
[1750180395188,1.14897733,642.02,641.42,1.117]
[1750180395990,0.27104809,642.4,641.42,1.117]
[1750180395991,1.14897733,641.98,641.42,1.117]
[1750180396992,1.14897733,641.98,641.43,1.462]
[1750180397795,1.14897733,641.94,641.43,1.462]
[1750180398091,1.14897733,641.87,641.43,1.462]
[1750180398991,1.14897733,641.85,641.43,1.462]
[1750180399690,1.14897733,641.82,641.43,1.462]
[1750180400095,1.14897733,641.8,641.43,1.462]
[1750180400494,1.14897733,641.81,641.43,1.462]
[1750180400694,1.14897733,641.8,641.43,1.462]
[1750180400990,1.14897733,641.78,641.43,1.462]
[1750180401594,1.14897733,641.8,641.43,1.462]
[1750180401991,1.14897733,641.79,641.43,1.462]